bitfinex/quotes_ETHUSD_20251110
["timestamp","ask_amount","ask_price","bid_price","bid_amount"]
[1762735967776,2.74182934,3647.2,3647.1,1.40271384]
[1762735968081,2.74182934,3647.2,3647.1,1.60111384]
[1762735968490,2.74182934,3647.2,3647.1,0.1994]
[1762735969489,2.74182934,3647.2,3647.1,1.1507]
[1762735970462,2.74182934,3647.2,3647.1,0.1994]
[1762735970859,2.74182934,3647.2,3647.1,0.001]
[1762735971082,2.74182934,3647.2,3647.1,0.1378]
[1762735971403,3.29018017,3647.2,3647.1,0.1378]
[1762735971764,3.29018017,3647.2,3647.1,0.3362]
[1762735972182,3.29018017,3647.2,3647.1,0.1378]
[1762735973181,3.29018017,3647.2,3647.1,0.3362]
[1762735973385,2.74182934,3647.2,3647.1,0.3362]
[1762735974398,2.74182934,3647.2,3647.1,0.8154]
[1762735974568,2.74178074,3647.3,3647.1,1.2875]
[1762735974764,2.74178074,3647.3,3647.2,2.82918004]
[1762735974990,2.74178074,3647.3,3647.2,2.96598004]
[1762735975195,2.74100265,3648.3,3647.2,1.0881]
[1762735975495,2.74122807,3648.0,3647.9,1.07566714]
[1762735975656,2.99732191,3648.0,3647.9,1.07566714]
[1762735975881,2.99732191,3648.0,3647.9,0.93886714]
[1762735976081,2.99732191,3648.0,3647.6,1.54510072]
[1762735976082,2.74145351,3647.7,3647.6,1.54510072]
[1762735976330,2.74165452,3647.5,3647.2,1.87788004]
[1762735976619,2.74145351,3647.7,3647.6,0.1368]
[1762735976824,3.28973552,3647.7,3647.6,1.54493576]
[1762735977119,3.28973552,3647.7,3647.1,2.07728004]
[1762735977120,2.74160383,3647.5,3647.4,1.40813576]
[1762735977275,2.741679,3647.4,3647.3,0.1368]
[1762735977482,2.741679,3647.4,3647.3,0.4721]
[1762735977732,2.741679,3647.4,3647.3,1.0881]
[1762735977912,2.74182934,3647.2,3647.1,1.40946881]
[1762735978080,2.74182934,3647.2,3647.1,1.60786881]
[1762735978481,2.74182934,3647.2,3647.1,0.1994]
[1762735978678,2.74182934,3647.2,3647.1,0.001]
[1762735978891,2.74182934,3647.2,3647.1,1.40946881]
[1762735979098,2.74182934,3647.2,3647.1,0.001]
[1762735979294,2.74182934,3647.2,3647.1,0.6786]
[1762735979541,2.74182934,3647.2,3647.1,1.1507]
[1762735979706,2.74182934,3647.2,3647.1,0.6786]
[1762735979919,2.74182934,3647.2,3647.1,0.1994]
[1762735980104,0.54828201,3647.7,3647.1,2.55916881]
[1762735980307,2.74160383,3647.5,3647.4,0.93881497]
[1762735980517,2.74084911,3648.6,3647.4,0.93881497]
[1762735980518,2.74070017,3648.8,3647.4,0.93881497]
[1762735980692,2.74070017,3648.8,3647.1,0.1994]
[1762735980693,0.00489058,3649.0,3647.9,0.93881497]
[1762735980897,0.00489058,3649.0,3648.3,1.88742245]
[1762735981097,0.00489058,3649.0,3647.7,2.74144442]
[1762735981098,0.0595,3647.1,3644.0,0.6705]
[1762735981328,0.1924,3647.1,3645.3,0.1984]
[1762735981527,0.73742466,3645.6,3645.4,0.4721]
[1762735981825,1.47484933,3646.1,3645.4,0.4721]
[1762735981826,3.48008589,3646.1,3645.5,1.30686113]
[1762735981988,0.98323288,3646.3,3645.5,1.30686113]
[1762735981989,0.73742466,3645.8,3645.5,1.30686113]
[1762735982188,1.8291974,3645.7,3645.3,0.1984]
[1762735982387,1.96646577,3646.4,3645.3,0.1984]
[1762735982388,0.58991061,3645.6,3645.4,0.4975]
[1762735982599,3.72582942,3646.2,3645.4,0.4975]
[1762735982600,2.74264228,3646.2,3645.4,0.4975]
[1762735982799,0.84561731,3646.1,3645.5,1.48]
[1762735982990,0.84561731,3646.0,3645.6,1.48]
[1762735983217,0.84561731,3645.9,3645.6,1.48]
[1762735983414,0.7372566,3647.5,3645.7,0.93043357]
[1762735983617,0.84517549,3647.4,3646.7,0.1987]
[1762735983795,0.84516214,3647.3,3646.8,1.48]
[1762735983991,0.2557707,3647.2,3646.8,1.48]
[1762735984196,0.7372566,3647.9,3646.9,0.4975]
[1762735984392,0.84516908,3647.8,3646.9,0.4975]
[1762735984707,2.74152867,3647.6,3646.9,0.4975]
[1762735984892,2.74178054,3647.3,3646.9,0.4975]
[1762735985330,0.385311,3647.9,3646.9,0.4975]
[1762735985528,0.84566331,3647.8,3646.9,0.4975]
[1762735985694,3.58712694,3647.7,3646.9,0.4975]
[1762735985896,0.25587454,3647.6,3646.9,0.4975]
[1762735986095,2.74316001,3648.1,3647.0,0.1987]
[1762735986309,2.99720735,3648.0,3647.7,0.1987]
[1762735986630,0.002,3648.1,3647.7,0.1987]
[1762735986631,0.002,3648.1,3647.8,0.99854768]
[1762735986831,0.002,3648.1,3647.8,0.4975]
[1762735987129,0.002,3648.1,3647.9,1.9775]
[1762735987533,0.002,3648.1,3648.0,0.4975]
[1762735987738,2.74315292,3648.1,3648.0,0.4975]
[1762735988029,3.5474699,3648.1,3648.0,0.1368]
[1762735988404,2.74190452,3647.1,3647.0,0.1987]
[1762735988611,2.74213008,3646.8,3646.5,0.1987]
[1762735988805,2.74213008,3646.8,3646.7,1.6787]
[1762735989010,2.74213008,3646.8,3646.7,2.313]
[1762735989392,2.74095723,3648.4,3646.7,0.833]
[1762735989601,2.74152867,3647.6,3647.5,0.1368]
[1762735989802,0.58873597,3647.9,3647.5,0.1368]
[1762735990010,0.55042066,3648.1,3647.5,0.4975]
[1762735990011,0.002,3648.1,3647.5,0.4975]
[1762735990338,2.74130321,3647.9,3647.0,0.4975]
[1762735990500,2.74190452,3647.1,3647.0,0.4975]
[1762735990704,0.002,3648.1,3647.7,0.1368]
[1762735990705,2.74130321,3647.9,3647.7,0.1368]
[1762735990915,0.002,3648.1,3647.0,1.9775]
[1762735991116,2.74130321,3647.9,3647.8,0.1368]
[1762735991319,2.74128872,3648.0,3647.1,0.72266904]
[1762735991617,0.002,3648.1,3648.0,0.1368]
[1762735992149,0.002,3648.5,3648.0,0.4975]
[1762735992371,0.002,3648.5,3648.1,0.50104542]
[1762735992534,0.002,3648.5,3648.3,1.259712]
[1762735992730,0.002,3648.5,3648.4,0.4736339]
[1762735993140,0.002,3648.5,3648.4,1.37844134]
[1762735993655,0.002,3648.5,3648.4,2.77599747]
[1762735993837,0.002,3648.5,3648.4,3.18150147]
[1762735994227,0.002,3648.5,3648.4,2.30236357]
[1762735994444,0.002,3648.5,3648.4,4.18786757]
[1762735994848,0.002,3648.5,3648.4,4.59675366]
[1762735995365,0.002,3648.5,3648.4,1.66859809]
[1762735995660,0.002,3648.5,3648.4,3.237212]
[1762735995856,0.002,3648.5,3648.4,2.739712]
[1762735996258,0.002,3648.5,3648.4,3.64609809]
[1762735996662,0.002,3648.5,3648.4,5.97813952]
[1762735996831,0.00489058,3649.0,3648.4,0.90638609]
[1762735997024,0.00489058,3649.0,3648.9,0.1987]
[1762735997219,0.00489058,3649.0,3648.5,0.4975]
[1762735997426,0.00489058,3649.0,3648.9,0.1987]
[1762735997941,0.00489058,3649.0,3648.9,1.10508609]
[1762735998560,0.00489058,3649.0,3648.9,3.84479809]
[1762735998859,0.00489058,3649.0,3648.9,4.3552491]
[1762735999462,5.74402179,3650.0,3648.9,7.39816147]
[1762735999687,5.74402179,3650.0,3649.9,0.1987]
[1762735999888,5.74402179,3650.0,3649.0,1.9775]
[1762736000179,5.74402179,3650.0,3649.8,0.1987]
[1762736000518,5.74402179,3650.0,3649.8,0.6962]
[1762736000726,2.73980109,3649.9,3649.8,0.1987]
[1762736001037,3.58818338,3649.9,3649.8,1.48]
[1762736001421,0.84838229,3649.9,3649.3,0.6962]
[1762736001656,3.58818338,3649.9,3649.8,1.48]
[1762736002134,3.58818338,3649.9,3649.8,1.6168]
[1762736002334,3.58818338,3649.9,3649.8,0.1368]
[1762736002657,3.58818338,3649.9,3649.8,1.6168]
[1762736003038,3.58818338,3649.9,3649.8,0.1368]
[1762736003220,2.73995122,3649.7,3649.6,1.48]
[1762736003423,3.58818338,3649.9,3648.9,0.1987]
[1762736003424,2.74047684,3649.0,3648.9,0.1987]
[1762736003663,2.74047684,3649.0,3648.9,1.48]
[1762736003832,1.20719913,3649.8,3648.9,0.6343]
[1762736004030,2.73987615,3649.8,3649.0,1.9615]
[1762736004268,2.74040174,3649.1,3649.0,1.9615]
[1762736004467,2.74017976,3649.4,3649.0,1.9615]
[1762736004679,2.73897565,3651.0,3649.1,0.4489]
[1762736004877,0.57440218,3649.9,3649.1,0.4489]
[1762736005186,0.57440218,3649.9,3649.2,1.48]
[1762736005840,0.57440218,3649.9,3649.3,1.48]
[1762736006003,0.57440218,3649.9,3648.7,0.6476]
[1762736006004,2.74028042,3649.3,3649.0,0.4489]
[1762736006296,0.6318424,3649.8,3649.1,1.48]
[1762736006659,2.74010668,3649.5,3649.1,1.9289]
[1762736006858,2.74010847,3649.5,3649.1,1.9289]
[1762736007195,5.74402179,3650.0,3649.7,0.0041]
[1762736007404,5.74402179,3650.0,3649.9,0.0059]
[1762736007605,5.74402179,3650.0,3649.9,1.4859]
[1762736007904,5.74402179,3650.0,3649.9,1.9753]
[1762736009403,5.74402179,3650.0,3649.9,0.4953]
[1762736009630,5.74402179,3650.0,3649.9,1.9753]
[1762736010325,5.74402179,3650.0,3649.9,0.4953]
[1762736010527,5.74402179,3650.0,3649.9,1.9753]
[1762736011386,5.74402179,3650.0,3649.9,4.49481309]
[1762736011639,5.74402179,3650.0,3649.9,6.8287984]
[1762736012135,5.74402179,3650.0,3649.9,3.68349331]
[1762736012507,5.74402179,3650.0,3649.9,2.20449331]
[1762736012708,5.74402179,3650.0,3649.9,3.234012]
[1762736013034,5.74402179,3650.0,3649.9,2.160516]
[1762736013202,5.74402179,3650.0,3649.9,3.639516]
[1762736013530,5.74402179,3650.0,3649.9,4.90031709]
[1762736013835,5.74402179,3650.0,3649.9,6.37931709]
[1762736014011,5.74402179,3650.0,3649.9,3.20924202]
[1762736014207,5.74402179,3650.0,3649.9,6.51611709]
[1762736014720,5.74402179,3650.0,3649.9,1.891812]
[1762736014901,5.74402179,3650.0,3649.9,3.370812]
[1762736015231,5.74402179,3650.0,3649.9,6.11061309]
[1762736015407,5.74402179,3650.0,3649.9,6.51611709]
[1762736015609,5.74402179,3650.0,3649.9,7.2549233]
[1762736015912,5.74402179,3650.0,3649.9,6.8096233]
[1762736016337,5.74402179,3650.0,3649.9,7.0326233]
[1762736016651,5.74402179,3650.0,3649.2,0.19289]
[1762736016652,0.3102,3649.8,3647.9,0.1987]
[1762736016795,0.1647,3649.6,3647.9,0.1987]
[1762736016993,0.1184,3649.8,3647.9,0.1987]
[1762736017209,0.1184,3650.2,3648.0,0.02741228]
[1762736017531,2.74015563,3649.5,3648.1,1.479]
[1762736017710,0.25472646,3650.1,3647.9,2.93996299]
[1762736017711,0.1918,3650.1,3648.2,1.479]
[1762736017910,0.44653553,3650.0,3648.2,1.479]
[1762736018151,2.74015606,3649.5,3648.3,0.02741002]
[1762736018455,0.1184,3650.4,3649.4,0.1954]
[1762736018692,0.25486199,3650.3,3648.4,0.4919]
[1762736018813,2.7400263,3649.6,3649.5,1.479]
[1762736019715,2.9318263,3649.6,3649.5,1.479]
[1762736019910,3.75418269,3649.6,3649.5,1.479]
[1762736020312,3.75420738,3649.6,3648.4,0.4919]
[1762736020546,3.75420738,3649.6,3647.9,0.1987]
[1762736020547,2.74077155,3648.7,3648.5,1.479]
[1762736020748,0.44698182,3649.5,3648.5,1.479]
[1762736020749,0.56722074,3649.5,3648.5,1.479]
[1762736020916,2.74070821,3648.7,3647.9,0.1987]
[1762736021260,0.7372566,3650.5,3649.4,0.661]
[1762736021426,0.7372566,3650.5,3648.1,1.259712]
[1762736021427,0.2554966,3650.4,3648.6,0.4656]
[1762736021615,0.2554966,3650.3,3648.7,2.738712]
[1762736021820,0.1184,3650.6,3648.7,2.738712]
[1762736021821,0.2554966,3650.2,3649.1,1.259712]
[1762736022042,0.2554966,3650.1,3649.2,0.6873]
[1762736022358,2.73941975,3650.5,3649.4,1.259712]
[1762736022541,0.25552403,3650.4,3649.5,1.479]
[1762736022740,0.25552403,3650.3,3649.2,0.6873]
[1762736023047,0.25552403,3650.2,3649.0,0.1954]
[1762736023247,0.1184,3650.6,3649.3,1.479]
[1762736023248,0.25552403,3650.1,3649.3,1.479]
[1762736023454,2.73981307,3649.9,3649.3,1.479]
[1762736023653,0.25556649,3649.8,3649.3,1.479]
[1762736023959,0.25556649,3649.8,3649.0,0.1954]
[1762736023960,0.25557677,3649.7,3649.4,1.479]
[1762736024113,2.99561504,3649.6,3649.5,1.479]
[1762736024511,3.37921504,3649.6,3649.5,1.479]
[1762736024934,3.18741504,3649.6,3649.5,1.479]
[1762736025253,2.74042002,3649.1,3648.3,0.4919]
[1762736025457,2.74032746,3649.2,3648.4,1.479]
[1762736025652,0.97633117,3649.6,3649.0,0.1368]
[1762736025653,2.74042217,3649.1,3649.0,0.1368]
[1762736025861,2.74042217,3649.1,3649.0,1.479]
[1762736026074,2.74017462,3649.5,3649.0,1.479]
[1762736026388,0.1918,3649.1,3647.9,0.1987]
[1762736026682,2.74068534,3648.8,3648.0,1.479]
[1762736026884,0.1918,3649.1,3648.0,1.69596]
[1762736027060,0.1918,3649.5,3648.0,1.69596]
[1762736027061,2.7405523,3648.9,3648.0,1.69596]
[1762736027258,2.93190202,3649.5,3648.1,0.51931152]
[1762736027462,2.74040491,3649.1,3648.2,0.36736835]
[1762736027893,2.73984808,3649.9,3648.2,2.08628035]
[1762736027894,2.93164808,3649.9,3648.2,2.08628035]
[1762736028050,2.74044953,3649.1,3648.3,1.479]
[1762736028399,2.7406053,3648.9,3648.4,1.479]
[1762736028607,0.1918,3649.7,3648.4,1.479]
[1762736028773,0.25564132,3649.6,3648.4,1.479]
[1762736028954,2.74039409,3649.2,3648.5,1.50640852]
[1762736029157,0.1918,3650.2,3648.5,2.738712]
[1762736029463,0.25562823,3650.1,3648.5,1.9382]
[1762736029659,2.73980109,3649.9,3648.3,0.20862804]
[1762736029974,0.82502978,3650.0,3647.9,0.1987]
[1762736029975,2.74040175,3649.1,3648.4,1.50640927]
[1762736030161,2.74050495,3649.0,3648.4,1.479]
[1762736030358,2.74032513,3649.3,3648.5,1.479]
[1762736030659,2.74017646,3649.4,3648.6,0.02740777]
[1762736030913,3.12942826,3650.4,3648.6,0.02740777]
[1762736030914,0.1918,3650.3,3648.6,0.15064078]
[1762736031118,0.1918,3650.3,3648.8,2.74062151]
[1762736031119,2.73965993,3650.1,3648.8,2.74062151]
[1762736031283,2.73962897,3650.2,3649.1,4.00006013]
[1762736031483,2.73950399,3650.3,3649.2,2.7402568]
[1762736031724,2.73936593,3650.5,3649.3,1.479]
[1762736031925,2.739552,3650.3,3649.3,4.21924798]
[1762736032223,2.73926689,3650.7,3649.4,3.19932492]
[1762736032519,0.44734221,3650.5,3649.4,0.566836]
[1762736032718,2.73973437,3650.0,3649.5,1.479]
[1762736033123,0.1184,3650.6,3649.5,1.9382]
[1762736033425,0.1184,3650.6,3649.6,0.4592]
[1762736033985,0.1184,3650.6,3649.5,1.479]
[1762736033986,2.73964375,3650.2,3649.5,1.479]
[1762736034295,0.3102,3650.6,3649.5,1.479]
[1762736034508,2.73957011,3650.3,3649.5,1.7987912]
[1762736034822,0.002,3650.2,3649.5,1.9382]
[1762736035197,0.002,3650.2,3649.3,0.001]
[1762736035198,2.73974099,3650.0,3649.3,0.001]
[1762736035519,0.002,3650.2,3649.4,1.479]
[1762736035721,0.002,3650.2,3650.1,0.4627]
[1762736035886,0.002,3650.2,3650.1,1.0635]
[1762736036810,0.002,3650.2,3650.1,3.66635096]
[1762736037136,0.002,3650.2,3650.1,2.323212]
[1762736037622,0.002,3650.2,3650.1,5.06286296]
[1762736037788,0.002,3650.2,3650.1,6.1392285]
[1762736038120,0.002,3650.2,3650.1,6.248632]
[1762736038836,0.002,3650.2,3650.1,6.336932]
[1762736039611,0.002,3650.2,3650.1,5.931428]
[1762736042116,0.002,3650.2,3650.1,2.875512]
[1762736042421,0.002,3650.2,3650.1,6.26546296]
[1762736042994,0.002,3650.2,3650.1,2.928712]
[1762736043332,0.002,3650.2,3650.1,6.11906296]
[1762736044537,0.002,3650.2,3650.1,4.64006296]
[1762736044738,0.002,3650.2,3650.1,5.47836296]
[1762736044941,0.002,3650.2,3650.1,5.66836296]
[1762736045256,0.002,3650.2,3650.1,2.738712]
[1762736045426,3.12517933,3650.2,3650.1,1.479]
[1762736045625,0.50631793,3650.2,3650.1,1.479]
[1762736046015,3.12517591,3650.2,3650.1,1.479]
[1762736046211,0.3856,3650.2,3650.1,1.479]
[1762736046542,0.1938,3650.2,3650.1,1.479]
[1762736047048,0.002,3650.2,3650.1,1.479]
[1762736047213,0.002,3650.2,3649.3,1.260712]
[1762736047415,0.002,3650.2,3650.1,1.479]
[1762736047615,0.002,3650.2,3650.1,2.1197]
[1762736047950,0.002,3650.2,3650.1,6.11906296]
[1762736049827,0.002,3650.2,3650.1,5.47836296]
[1762736050048,0.002,3650.2,3650.1,2.738712]
[1762736050556,0.002,3650.2,3650.1,1.479]
[1762736051456,0.002,3650.2,3650.1,6.2348194]
[1762736051756,0.002,3650.2,3650.1,5.68696296]
[1762736052122,0.002,3650.2,3650.1,2.928712]
[1762736052419,0.002,3650.2,3650.1,1.259712]
[1762736052633,0.002,3650.2,3650.1,2.738712]
[1762736052835,0.1938,3650.2,3650.1,1.259712]
[1762736053035,0.1938,3650.2,3650.1,1.6158]
[1762736053036,3.12517591,3650.2,3650.1,1.6158]
[1762736053254,2.73972602,3650.0,3649.9,1.479]
[1762736053454,0.1938,3650.2,3649.9,1.479]
[1762736053660,0.1938,3650.2,3649.3,0.001]
[1762736053661,0.1918,3650.0,3649.3,0.001]
[1762736053960,0.1918,3650.1,3649.3,0.001]
[1762736053961,0.1647,3649.8,3649.4,1.479]
[1762736054119,0.1916,3649.4,3649.3,0.001]
[1762736054324,0.1916,3649.4,3649.3,1.48]
[1762736054523,2.892,3651.5,3649.3,1.48]
[1762736054847,2.24471704,3650.9,3649.3,1.48]
[1762736055048,2.7392007,3650.7,3649.3,1.48]
[1762736055244,2.7392007,3650.7,3649.4,1.479]
[1762736055245,0.27392007,3650.6,3649.4,1.479]
[1762736055633,2.74017646,3649.4,3649.3,0.001]
[1762736057354,2.74047684,3649.0,3648.9,0.001]
[1762736058236,5.00816187,3649.9,3647.2,0.19]
[1762736058237,2.74122807,3648.0,3647.9,1.479]
[1762736058443,2.74115766,3648.1,3647.9,1.479]
[1762736058649,0.27403832,3649.1,3647.9,1.479]
[1762736058847,2.74123321,3648.0,3647.9,1.479]
[1762736059044,2.74107373,3648.3,3647.7,1.479]
[1762736059258,2.74136263,3647.9,3647.7,1.479]
[1762736059446,2.74017646,3649.4,3647.7,1.479]
[1762736059635,2.74109606,3648.2,3647.8,0.1479]
[1762736059834,0.77483383,3649.3,3647.7,1.479]
[1762736060074,0.77483383,3649.3,3646.9,0.19]
[1762736060075,2.74122392,3648.1,3646.9,0.19]
[1762736060372,0.77483383,3649.3,3647.0,1.479]
[1762736060532,0.77483383,3649.3,3646.9,0.6503]
[1762736060533,0.77483383,3649.3,3647.1,0.21293]
[1762736060727,0.77483383,3649.3,3647.2,1.479]
[1762736060728,2.74133934,3647.9,3647.2,1.479]
[1762736060970,2.74153934,3647.6,3647.2,1.479]
[1762736061580,0.77483383,3649.3,3646.9,0.19]
[1762736061581,2.74032664,3649.2,3646.9,0.19]
[1762736061763,2.74077728,3648.6,3647.0,1.479]
[1762736061947,7.74863882,3649.0,3647.0,1.479]
[1762736062137,7.74863882,3649.0,3647.1,0.19]
[1762736062138,2.74133073,3647.9,3647.1,0.19]
[1762736062338,2.74124096,3648.0,3647.2,0.02741829]
[1762736062564,2.7410779,3648.2,3647.2,0.29561303]
[1762736062889,5.00816187,3649.6,3647.2,0.32303132]
[1762736063185,5.00816187,3649.6,3647.4,2.74165621]
[1762736063475,5.00816187,3649.6,3647.5,1.479]
[1762736063476,2.74109741,3648.2,3647.5,1.479]
[1762736063635,2.74098283,3648.4,3647.6,0.5318]
[1762736063836,2.74087151,3648.5,3647.6,0.5318]
[1762736064050,0.50081619,3649.5,3647.6,0.5318]
[1762736064369,0.824901,3649.4,3647.6,0.5318]
[1762736064574,2.74025155,3649.3,3647.6,0.5318]
[1762736064748,2.87731228,3649.0,3648.4,0.1368]
[1762736064945,2.7408524,3648.5,3648.4,0.1368]
[1762736065335,2.74122807,3648.0,3647.9,1.48]
[1762736065568,0.41087583,3648.6,3647.9,1.6168]
[1762736065743,2.74106347,3648.3,3647.9,0.1368]
[1762736065946,0.1368,3648.8,3648.2,0.1368]
[1762736066149,2.74100265,3648.3,3648.2,0.1368]
[1762736066354,0.1368,3648.6,3647.2,1.55532503]
[1762736066550,2.74175417,3647.3,3647.2,0.29561303]
[1762736066742,0.1368,3648.2,3646.6,0.4603]
[1762736066743,2.74187051,3647.2,3646.6,0.4603]
[1762736066934,2.74117507,3648.1,3647.5,0.1368]
[1762736067135,2.74117507,3648.1,3647.1,0.1368]
[1762736067136,2.74182934,3647.2,3647.1,0.1368]
[1762736067349,2.74079514,3648.6,3646.7,1.48]
[1762736067350,2.74070216,3648.7,3646.7,1.9403]
[1762736067552,2.74189184,3647.2,3647.1,0.1368]
[1762736067777,2.74152867,3647.6,3647.5,0.1368]
[1762736067939,2.74162032,3647.5,3647.1,1.67]
[1762736068144,2.87792044,3648.2,3647.5,0.1368]
[1762736068392,0.1368,3648.2,3647.5,0.1368]
[1762736068593,2.87788908,3648.2,3647.5,0.1368]
[1762736068743,2.74047684,3649.0,3647.2,0.167]
[1762736068940,2.74116376,3648.1,3647.9,0.1368]
[1762736069143,2.7412053,3648.1,3647.9,0.1368]
[1762736069341,2.74107443,3648.3,3648.0,0.1368]
[1762736069598,2.74081936,3648.6,3648.0,0.1368]
[1762736069874,2.74081936,3648.6,3648.2,0.1368]
[1762736069875,2.74079333,3648.6,3648.2,0.1368]
[1762736070054,2.74071688,3648.7,3648.1,0.19]
[1762736070241,2.74073573,3648.7,3648.5,0.1368]
[1762736070442,2.74067576,3648.8,3648.5,0.1368]
[1762736070641,2.74056023,3648.9,3648.6,1.48]
[1762736070856,2.74069199,3648.8,3648.6,1.48]
[1762736071075,2.74070216,3648.7,3648.6,1.48]
[1762736071274,2.74077728,3648.6,3648.5,0.1368]
[1762736071485,2.74077728,3648.6,3648.5,1.6168]
[1762736071778,0.1368,3649.3,3648.5,1.79748]
[1762736071956,2.74062501,3648.9,3648.5,1.66068]
[1762736072152,2.73980109,3649.9,3648.2,0.19]
[1762736072153,0.50281619,3650.0,3648.6,1.48]
[1762736072343,0.50281619,3650.0,3648.8,0.1368]
[1762736072547,0.002,3650.0,3648.7,0.4834]
[1762736072752,0.002,3650.0,3648.6,1.48]
[1762736072753,2.74179756,3650.0,3648.6,1.48]
[1762736072953,2.74014077,3649.5,3648.6,1.48]
[1762736073255,0.002,3650.0,3648.7,0.148]
[1762736073580,2.74004769,3649.6,3648.7,0.148]
[1762736073768,2.73980109,3649.9,3648.7,0.6314]
[1762736073968,2.74010948,3649.5,3648.8,0.36451747]
[1762736074167,2.74010948,3649.5,3648.8,0.3371112]
[1762736074483,2.74172656,3650.0,3648.9,1.48]
[1762736074694,2.73995549,3649.7,3649.0,0.51891293]
[1762736074869,0.002,3650.0,3649.0,0.51891293]
[1762736075073,0.002,3650.0,3649.1,1.6758]
[1762736075379,2.73980109,3649.9,3649.1,1.6758]
[1762736075545,0.002,3650.0,3649.1,1.6758]
[1762736075980,2.73992838,3649.8,3649.1,1.6758]
[1762736076189,2.73995176,3649.7,3649.1,2.16578144]
[1762736076593,2.74003053,3649.6,3649.1,2.16578144]
[1762736076887,0.002,3650.0,3649.1,1.48]
[1762736077087,2.74007623,3649.6,3649.1,1.6758]
[1762736077256,0.002,3650.0,3649.1,1.6758]
[1762736077457,2.74007464,3649.6,3649.1,1.6758]
[1762736077683,2.74017086,3649.5,3649.1,1.48]
[1762736078293,0.002,3650.0,3649.1,1.48]
[1762736078294,2.74005119,3649.6,3649.1,1.6758]
[1762736078479,0.002,3650.0,3649.1,1.6758]
[1762736078677,2.73980109,3649.9,3649.1,1.6758]
[1762736078880,2.74003859,3649.6,3649.1,1.6758]
[1762736079092,2.74014968,3649.5,3649.1,1.6758]
[1762736079391,2.74003032,3649.6,3649.1,1.48]
[1762736079701,2.74025937,3649.3,3649.1,1.48]
[1762736079866,2.74025937,3649.3,3648.5,1.259712]
[1762736080067,2.74025937,3649.3,3648.2,2.93107354]
[1762736080068,2.74025595,3649.3,3648.6,1.8800629]
[1762736080296,2.73992287,3649.8,3648.7,1.48]
[1762736080466,2.74068178,3648.8,3648.7,1.48]
[1762736080665,2.73995122,3649.7,3647.9,0.6734]
[1762736080666,2.74085653,3648.5,3647.9,0.19]
[1762736080866,2.7403353,3649.2,3648.0,1.48]
[1762736081186,2.74010138,3649.5,3648.0,1.48]
[1762736081394,2.74092336,3648.5,3648.0,1.48]
[1762736081567,2.74038315,3649.2,3648.1,0.1958]
[1762736081765,0.27403831,3649.1,3648.1,0.1958]
[1762736081966,2.74060844,3648.9,3648.2,0.51081077]
[1762736082166,0.002,3650.0,3648.2,0.4834]
[1762736082372,2.73993675,3649.8,3649.1,0.1368]
[1762736082693,2.74034719,3649.2,3649.1,0.1368]
[1762736083064,0.1368,3649.7,3649.1,0.1368]
[1762736083505,2.74032664,3649.2,3649.1,0.1368]
[1762736084393,0.1368,3649.7,3648.8,1.48]
[1762736084394,2.74055194,3648.9,3648.8,1.48]
[1762736084853,2.74055194,3648.9,3648.8,0.1368]
[1762736086357,0.1368,3649.5,3648.8,0.1368]
[1762736086758,2.74055194,3648.9,3648.8,0.1368]
[1762736087175,0.1368,3649.5,3648.8,0.1368]
[1762736087897,2.74025481,3649.3,3649.2,0.1368]
[1762736088194,0.002,3650.0,3648.7,1.48]
[1762736088369,2.74045433,3649.1,3648.7,1.48]
[1762736088560,2.7417289,3650.0,3648.8,0.4621]
[1762736088756,0.25557565,3649.9,3648.7,1.48]
[1762736088983,0.25557565,3649.9,3647.9,0.19]
[1762736088984,0.25557565,3649.8,3647.9,0.19]
[1762736089188,0.002,3650.0,3648.0,1.9421]
[1762736089189,0.25557565,3649.7,3648.0,1.9421]
[1762736089364,0.25557565,3649.6,3648.0,1.9421]
[1762736089695,2.74078789,3648.6,3648.1,0.86451]
[1762736089869,2.74091939,3648.5,3648.1,0.40241]
[1762736090071,2.73987615,3649.8,3648.2,1.48]
[1762736090409,5.00816187,3649.6,3647.9,1.48]
[1762736090561,2.74122807,3648.0,3647.9,1.48]
[1762736090767,2.7407237,3648.7,3647.6,0.1892]
[1762736090979,2.74130231,3648.0,3647.7,1.48]
[1762736091264,2.74032664,3649.2,3647.7,1.9421]
[1762736091504,0.25572721,3649.1,3647.9,0.4684]
[1762736091674,2.74092876,3648.4,3647.9,0.4684]
[1762736091881,2.74040174,3649.1,3647.9,0.9305]
[1762736092067,0.83128904,3649.1,3647.9,1.19047]
[1762736092297,0.25575132,3649.0,3647.7,1.48]
[1762736092576,0.25575132,3648.9,3647.7,1.48]
[1762736092779,5.06589879,3649.7,3647.8,0.4621]
[1762736093106,5.06589879,3649.7,3647.9,0.21313]
[1762736093107,2.74010138,3649.5,3647.9,0.21313]
[1762736093311,2.741368,3647.9,3647.7,1.48]
[1762736093467,5.06589879,3649.2,3647.7,1.48]
[1762736093667,2.74122917,3648.0,3647.7,1.48]
[1762736093996,2.74116067,3648.1,3647.7,1.48]
[1762736094202,2.74116067,3648.1,3647.7,1.67421]
[1762736094502,2.74133427,3647.9,3647.7,1.67421]
[1762736094709,2.74040174,3649.1,3647.7,1.48]
[1762736094868,2.74137836,3647.8,3647.7,1.48]
[1762736095068,5.06589879,3648.7,3647.3,1.48]
[1762736095311,2.7416598,3647.5,3647.3,1.48]
[1762736095607,2.74160858,3647.5,3647.3,1.48]
[1762736095769,2.74155106,3647.6,3647.3,1.48]
[1762736096194,5.33993896,3649.0,3647.3,1.48]
[1762736096503,2.74139624,3647.8,3647.3,1.6471]
[1762736096690,2.74062705,3648.8,3647.3,1.48]
[1762736096861,2.74147725,3647.7,3647.3,1.48]
[1762736097065,0.27404017,3649.0,3647.3,1.9421]
[1762736097312,0.27404017,3649.0,3647.3,1.48]
[1762736097313,0.2557496,3648.8,3647.3,1.48]